bitfinex/quotes_SOLUSD_20241020
["timestamp","ask_amount","ask_price","bid_price","bid_amount"]
[1729383581148,800.18695521,160.0,159.97,0.07214838]
[1729383582341,800.18695521,160.0,159.95,0.07214838]
[1729383583462,800.18695521,160.0,159.98,0.07214838]
[1729383586845,800.18695521,160.0,159.96,0.07214838]
[1729383587050,800.18695521,160.0,159.98,0.07214838]
[1729383587250,800.18695521,160.0,159.96,0.07214838]
[1729383587467,800.18695521,160.0,159.98,0.07214838]
[1729383587646,800.18695521,160.0,159.96,0.07214838]
[1729383588169,800.18695521,160.0,159.95,0.07214838]
[1729383588369,6.2507,159.99,159.95,0.07214838]
[1729383588666,806.43695521,160.0,159.96,0.07214838]
[1729383590551,806.43695521,160.0,159.95,0.07214838]
[1729383590971,806.43695521,160.0,159.96,0.07214838]
[1729383591967,806.43695521,160.0,159.94,0.07214838]
[1729383592267,806.43695521,160.0,159.96,0.07214838]
[1729383593144,806.43695521,160.0,159.94,0.07214838]
[1729383593346,806.43695521,160.0,159.93,0.07214838]
[1729383594653,23.776884,159.99,159.91,0.07214838]
[1729383594871,6.2511,159.98,159.91,0.07214838]
[1729383595262,15.4752,159.97,159.91,0.07214838]
[1729383595571,15.4752,159.97,159.93,0.07214838]
[1729383595744,15.4752,159.97,159.9,0.07214838]
[1729383595945,21.7265,159.97,159.92,0.07214838]
[1729383596441,21.7265,159.97,159.9,0.07214838]
[1729383596958,15.4752,159.97,159.93,0.07214838]
[1729383597765,15.4752,159.97,159.92,0.07214838]
[1729383597966,15.4752,159.97,159.93,0.07214838]
[1729383604375,800.18695521,160.0,159.94,0.07214838]
[1729383604579,800.18695521,160.0,159.96,0.07214838]
[1729383605772,800.18695521,160.0,159.95,0.07214838]
[1729383606072,800.18695521,160.0,159.96,0.07214838]
[1729383606468,800.18695521,160.0,159.97,0.07214838]
[1729383606858,800.18695521,160.0,159.95,0.07214838]
[1729383607062,800.18695521,160.0,159.97,0.07214838]
[1729383607456,739.30375521,160.0,159.99,24.49854838]
[1729383609271,739.30375521,160.0,159.99,24.39854838]
[1729383611277,739.30375521,160.0,159.99,24.49854838]
[1729383616778,739.30375521,160.0,159.99,4.49854838]
[1729383618084,739.08654669,160.0,159.99,4.49854838]
[1729383618460,739.08654669,160.0,159.99,24.49854838]
[1729383619662,739.08654669,160.0,159.99,31.93164955]
[1729383623295,739.08654669,160.0,159.99,27.70524955]
[1729383623976,739.08654669,160.0,159.99,70.24213355]
[1729383624175,739.08654669,160.0,159.99,107.76213355]
[1729383624381,699.84654669,160.0,159.99,120.07517143]
[1729383624957,676.83235757,160.0,159.99,120.07517143]
[1729383625663,669.71235757,160.0,159.99,120.07517143]
[1729383626058,622.58339607,160.0,159.99,120.07517143]
[1729383626375,451.42107839,160.0,159.99,117.93912718]
[1729383626569,444.30107839,160.0,159.99,117.93912718]
[1729383626772,444.30107839,160.0,159.99,117.93888717]
[1729383626965,444.30107839,160.0,159.99,117.93890652]
[1729383627176,437.18107839,160.0,159.99,117.93890652]
[1729383627567,436.28173113,160.0,159.99,117.93890652]
[1729383628183,436.28173113,160.0,159.99,115.84407143]
[1729383630092,433.18173114,160.0,159.99,115.84407143]
[1729383631875,433.18173114,160.0,159.99,117.93064665]
[1729383632591,433.18173114,160.0,159.99,110.49754548]
[1729383632976,433.18173114,160.0,159.99,115.84407143]
[1729383633598,433.18173114,160.0,159.99,72.06718743]
[1729383633775,411.82173114,160.0,159.99,72.06718743]
[1729383634790,410.73619362,160.0,159.99,72.06718743]
[1729383635095,410.73619362,160.0,159.99,107.76213355]
[1729383635673,410.73619362,160.0,159.99,116.19868254]
[1729383636379,403.61619362,160.0,159.99,116.19868254]
[1729383636771,396.49619362,160.0,159.99,116.19868254]
[1729383636975,396.49619362,160.0,159.99,118.27711344]
[1729383637394,396.49619362,160.0,159.99,116.19868254]
[1729383637582,396.49619362,160.0,159.99,118.27555696]
[1729383641086,396.49619362,160.0,159.99,118.27244221]
[1729383641474,396.49619362,160.0,159.99,116.19868254]
[1729383641675,396.49619362,160.0,159.99,118.27255908]
[1729383642395,396.49619362,160.0,159.99,118.27228671]
[1729383644778,364.98984307,160.0,159.99,118.27228671]
[1729383645981,322.46715067,160.0,159.99,118.27228671]
[1729383646184,19.2523545,160.16,160.15,0.17214838]
[1729383646387,19.2523545,160.16,160.15,0.27214838]
[1729383646581,16.3052,160.27,160.26,0.07214838]
[1729383646886,16.3052,160.27,160.17,0.2]
[1729383647090,16.3052,160.27,160.17,0.1]
[1729383647388,16.3052,160.27,160.16,0.1]
[1729383647389,15.3052,160.27,160.19,0.1]
[1729383647596,15.3052,160.27,160.2,0.1]
[1729383647799,15.3052,160.27,160.22,0.1]
[1729383649202,15.3052,160.27,160.23,0.1]
[1729383649403,6.3153,160.26,160.24,0.1]
[1729383649608,6.3153,160.26,160.18,6.08159631]
[1729383650309,6.3153,160.26,160.18,32.60334999]
[1729383650784,6.3153,160.26,160.19,26.52175368]
[1729383650983,6.3153,160.26,160.2,6.35992964]
[1729383651198,6.3153,160.26,160.2,25.11992964]
[1729383651380,15.3052,160.27,160.22,18.76]
[1729383651576,15.3052,160.27,160.23,25.11992964]
[1729383651997,0.6201545,160.28,160.23,25.11992964]
[1729383652188,0.6201545,160.28,160.25,18.76]
[1729383652399,0.6201545,160.28,160.26,6.35992964]
[1729383653303,0.6201545,160.28,160.26,25.11992964]
[1729383654082,0.6201545,160.28,160.27,56.28]
[1729383654283,0.6201545,160.28,160.27,62.63992964]
[1729383656104,0.6201545,160.28,160.27,43.87992964]
[1729383660194,0.6201545,160.28,160.27,6.35992964]
[1729383660393,0.6201545,160.28,160.17,3.26087343]
[1729383660394,0.6201545,160.28,160.21,15.3299]
[1729383660710,23.776884,160.27,160.21,6.35992964]
[1729383661087,0.6201545,160.28,160.21,14.12168332]
[1729383661807,0.6201545,160.28,160.22,7.76175368]
[1729383662113,0.6201545,160.28,160.23,6.35992964]
[1729383662308,23.776884,160.27,160.23,6.35992964]
[1729383662510,0.6201545,160.28,160.23,14.12168332]
[1729383662700,0.6201545,160.28,160.23,45.28175368]
[1729383662896,0.6201545,160.28,160.24,6.35992964]
[1729383664007,0.6201545,160.28,160.25,27.76175368]
[1729383664207,0.6201545,160.28,160.26,6.35992964]
[1729383664416,0.6201545,160.28,160.27,7.76175368]
[1729383664596,0.6201545,160.28,160.27,14.12168332]
[1729383667217,0.43313564,160.28,160.27,14.12168332]
[1729383667914,0.43313564,160.28,160.27,70.40168332]
[1729383668097,28.96233477,160.39,160.27,70.40168332]
[1729383668098,28.96233477,160.39,160.3,20.0]
[1729383668297,28.96233477,160.39,160.31,14.12168332]
[1729383668713,26.46233477,160.39,160.31,14.12168332]
[1729383669219,23.776884,160.38,160.31,14.12168332]
[1729383669914,26.46233477,160.39,160.31,14.12168332]
[1729383670420,26.46233477,160.39,160.31,51.64168332]
[1729383670599,26.46233477,160.39,160.32,20.0]
[1729383670917,26.46233477,160.39,160.32,7.76175368]
[1729383671120,26.46233477,160.39,160.33,56.28]
[1729383672112,26.46233477,160.39,160.32,7.76175368]
[1729383673016,23.776884,160.38,160.29,10.51655444]
[1729383673214,23.776884,160.38,160.29,18.27830812]
[1729383673522,23.776884,160.38,160.3,26.52175368]
[1729383673709,23.776884,160.38,160.3,64.04175368]
[1729383673903,26.46233477,160.39,160.3,64.04175368]
[1729383674621,26.46233477,160.39,160.31,76.28]
[1729383674806,26.46233477,160.39,160.32,64.04175368]
[1729383679427,3.97033477,160.39,160.35,20.0]
[1729383679634,3.97033477,160.39,160.36,64.04175368]
[1729383680210,3.97033477,160.39,160.38,56.28]
[1729383680416,3.97033477,160.39,160.38,84.04175368]
[1729383680729,3.97033477,160.39,160.38,64.04175368]
[1729383681311,3.97033477,160.39,160.38,84.04175368]
[1729383681911,0.6201545,160.44,160.4,56.28]
[1729383682637,0.6201545,160.44,160.4,64.04175368]
[1729383685313,0.6201545,160.44,160.38,23.6822]
[1729383685314,0.6201545,160.44,160.42,56.28]
[1729383688013,0.6201545,160.44,160.34,4.32892531]
[1729383688014,0.6201545,160.44,160.39,56.28]
[1729383688327,0.6201545,160.44,160.4,5.74729]
[1729383688916,15.8794,160.43,160.38,56.28]
[1729383689116,15.8794,160.43,160.38,62.027291]
[1729383690224,15.8794,160.43,160.3,11.21639997]
[1729383690225,6.311,160.42,160.3,7.53419997]
[1729383690514,6.311,160.42,160.32,7.76175368]
[1729383690918,6.311,160.42,160.33,1.24639615]
[1729383691120,6.311,160.42,160.35,56.28]
[1729383691412,6.311,160.42,160.37,56.28]
[1729383691620,6.311,160.42,160.38,76.28]
[1729383691820,15.8794,160.43,160.38,84.04175368]
[1729383692235,0.6201545,160.44,160.38,76.28]
[1729383692444,0.6201545,160.44,160.4,20.0]
[1729383694722,15.8794,160.42,160.35,18.76]
[1729383694920,15.8794,160.42,160.36,5.747291]
[1729383695128,15.8794,160.42,160.36,13.50904468]
[1729383696231,15.8794,160.42,160.37,20.0]
[1729383699043,15.8794,160.42,160.33,6.50256349]
[1729383699044,0.1,160.4,160.33,6.50256349]
[1729383699626,15.8794,160.42,160.33,6.50256349]
[1729383699939,15.8794,160.42,160.35,18.76]
[1729383700110,15.8794,160.42,160.35,56.28]
[1729383700311,15.8794,160.42,160.36,20.0]
[1729383701119,15.8794,160.42,160.38,20.0]
[1729383701316,15.8794,160.42,160.36,20.0]
[1729383704348,15.8794,160.42,160.37,2.06015452]
[1729383704945,15.8794,160.42,160.36,20.0]
[1729383705123,15.8794,160.42,160.37,2.06014533]
[1729383705321,15.8794,160.42,160.37,2.0628365]
[1729383707319,15.8794,160.42,160.34,7.76175368]
[1729383707320,0.1,160.41,160.35,2.0628365]
[1729383708525,0.1,160.41,160.35,22.0628365]
[1729383708726,23.876884,160.41,160.36,2.0628365]
[1729383709448,0.1,160.4,160.36,2.0628365]
[1729383709746,0.1,160.4,160.35,2.0628365]
[1729383710037,0.1,160.4,160.34,2.0628365]
[1729383710247,21.5252,160.36,160.34,2.0628365]
[1729383710721,21.5252,160.36,160.31,2.0628365]
[1729383711545,21.6252,160.36,160.31,2.0628365]
[1729383712044,0.1,160.35,160.31,2.0628365]
[1729383712242,0.1,160.35,160.31,2.07653637]
[1729383713242,0.1,160.35,160.31,22.07653637]
[1729383713448,0.1,160.35,160.32,2.07653637]
[1729383715931,0.1,160.35,160.32,2.07966349]
[1729383718340,21.6252,160.36,160.32,2.07966349]
[1729383718960,21.5252,160.36,160.32,2.07966349]
[1729383719268,21.6252,160.36,160.32,2.07966349]
[1729383719649,21.6252,160.36,160.31,20.0]
[1729383719853,21.5252,160.36,160.32,2.07996637]
[1729383720936,21.5252,160.36,160.33,2.07996637]
[1729383721131,21.5252,160.4,160.34,20.0]
[1729383721354,21.5252,160.4,160.35,22.07996637]
[1729383721553,21.5252,160.4,160.36,2.07996637]
[1729383722455,0.1,160.39,160.32,20.0]
[1729383722753,0.1,160.38,160.33,2.0802437]
[1729383722962,0.1,160.38,160.34,2.0802437]
[1729383723160,0.1,160.38,160.35,2.0802437]
[1729383723364,0.1,160.38,160.36,2.0802437]
[1729383723548,0.1,160.39,160.37,2.08124451]
[1729383723746,0.1,160.39,160.33,2.08124451]
[1729383723949,0.1,160.39,160.34,2.08124451]
[1729383724155,0.1,160.39,160.35,2.08124451]
[1729383724365,0.1,160.39,160.36,2.08124451]
[1729383724557,0.1,160.39,160.37,2.08124451]
[1729383724758,21.5252,160.4,160.32,20.0]
[1729383724759,21.6252,160.4,160.33,2.08124451]
[1729383724953,21.6252,160.4,160.34,2.08124451]
[1729383725262,21.6252,160.4,160.35,2.08124451]
[1729383725457,21.6252,160.4,160.36,2.08124451]
[1729383725642,21.6252,160.4,160.37,2.08124451]
[1729383725845,0.1,160.39,160.33,2.08124451]
[1729383726166,0.1,160.39,160.34,2.08124451]
[1729383726349,21.6252,160.4,160.35,2.08124451]
[1729383726554,21.6252,160.4,160.32,20.0]
[1729383726555,21.6252,160.4,160.36,2.08124451]
[1729383726737,21.5252,160.4,160.32,20.0]
[1729383727057,21.5252,160.4,160.33,2.08226829]
[1729383727362,21.5252,160.4,160.34,2.08226829]
[1729383727662,21.5252,160.4,160.35,2.08226829]
[1729383727964,21.5252,160.4,160.36,2.08226829]
[1729383728261,21.5252,160.4,160.37,2.08226829]
[1729383728468,21.6252,160.4,160.38,2.08226829]
[1729383728762,21.6252,160.4,160.35,2.08226829]
[1729383728948,21.6252,160.4,160.36,2.08226829]
[1729383729148,21.6252,160.4,160.37,2.08226829]
[1729383729349,21.6252,160.4,160.38,2.08226829]
[1729383729545,0.1,160.38,160.35,2.08226829]
[1729383729746,0.1,160.38,160.31,6.5032147]
[1729383729747,0.1,160.38,160.36,2.08226829]
[1729383729951,0.1,160.38,160.33,2.08226829]
[1729383730149,0.1,160.38,160.34,2.08226829]
[1729383730351,0.1,160.38,160.29,49.12035117]
[1729383730352,23.776884,160.39,160.35,2.08226829]
[1729383730560,0.1,160.38,160.36,2.08176184]
[1729383730869,0.1,160.38,160.37,2.08176184]
[1729383731052,23.876884,160.39,160.3,22.08176184]
[1729383731249,23.876884,160.39,160.31,2.08176184]
[1729383731462,23.876884,160.39,160.32,2.08176184]
[1729383731662,23.876884,160.39,160.33,22.08176184]
[1729383731867,23.876884,160.39,160.34,2.08176184]
[1729383732047,23.776884,160.39,160.35,2.08176184]
[1729383732263,21.5252,160.4,160.36,2.08176184]
[1729383732464,21.5252,160.4,160.37,2.08176184]
[1729383732773,21.5252,160.4,160.38,2.08176184]
[1729383732966,21.5252,160.4,160.37,20.0]
[1729383733170,21.5252,160.4,160.38,7.14090292]
[1729383733751,21.5252,160.4,160.39,2.08176184]
[1729383734306,21.5252,160.4,160.38,5.05914108]
[1729383734443,21.5252,160.4,160.39,2.0810522]
[1729383735154,21.5252,160.4,160.39,7.14019328]
[1729383735355,21.5252,160.4,160.39,27.14019328]
[1729383737754,45.402084,160.4,160.39,7.14019328]
[1729383737956,45.402084,160.4,160.39,7.14092004]
[1729383738369,45.402084,160.4,160.39,5.05914108]
[1729383739688,0.1,160.38,160.33,22.08198375]
[1729383739862,0.1,160.37,160.35,5.05914108]
[1729383740063,0.1,160.37,160.36,2.08205764]
[1729383740473,0.1,160.38,160.36,2.08205764]
[1729383740674,0.2,160.38,160.36,5.05914108]
[1729383740871,0.1,160.37,160.36,5.05914108]
[1729383741071,0.1,160.37,160.36,27.14132835]
[1729383741686,0.1,160.37,160.36,25.05914108]
[1729383741870,0.1,160.37,160.36,27.14125343]
[1729383742070,0.2,160.38,160.36,27.14125343]
[1729383742289,0.2,160.38,160.36,25.05914108]
[1729383742478,0.1,160.37,160.36,25.05914108]
[1729383742791,0.1,160.37,160.36,27.14135865]
[1729383744291,0.2,160.38,160.36,27.14135865]
[1729383744485,0.2,160.38,160.37,2.08221757]
[1729383744690,0.1,160.38,160.37,2.08221757]
[1729383744899,0.2,160.38,160.37,2.08221757]
[1729383745188,0.1,160.38,160.37,2.08221757]
[1729383745389,0.1,160.37,160.36,25.05914108]
[1729383746098,0.1,160.34,160.32,6.35578961]
[1729383746277,46.261484,160.33,160.32,6.35578961]
[1729383746478,0.1,160.31,160.29,10.51655444]
[1729383747794,0.1,160.3,160.29,10.51655444]
[1729383751205,0.1,160.27,160.26,7.43997293]
[1729383752474,0.1,160.27,160.26,12.49911401]
[1729383752684,0.1,160.27,160.26,32.49911401]
[1729383753472,0.1,160.28,160.26,32.49911401]
[1729383753690,0.1,160.27,160.26,27.43997293]
[1729383753888,0.1,160.29,160.27,24.95914108]
[1729383756397,0.1,160.3,160.27,24.95914108]
[1729383756819,0.1,160.3,160.27,4.95914108]
[1729383757295,0.1,160.3,160.27,24.95914108]
[1729383761113,0.1,160.3,160.27,4.95914108]
[1729383761310,0.1,160.29,160.27,4.95914108]
[1729383762314,0.1,160.28,160.27,4.95914108]
[1729383762607,23.776884,160.27,160.24,33.72835034]
[1729383762907,0.1,160.26,160.24,33.72835034]
[1729383763298,0.1,160.25,160.24,33.72835034]
[1729383768085,22.4366,160.25,160.24,17.06175034]
[1729383768291,46.213484,160.25,160.22,40.25796978]
[1729383768610,46.213484,160.25,160.24,28.73947045]
[1729383769292,0.1,160.23,160.22,40.25796978]
[1729383769510,0.2,160.23,160.22,40.25796978]
[1729383770397,6.625,160.23,160.22,23.59136978]
[1729383770609,22.5366,160.23,160.22,16.92476978]
[1729383771114,22.6366,160.23,160.22,16.92476978]
[1729383771417,22.6366,160.23,160.07,11.55565267]
[1729383771418,0.1,160.15,160.07,11.55565267]
[1729383771593,0.1,160.15,160.09,0.36]
[1729383771789,0.1,160.12,160.09,0.36]
[1729383772010,0.1,160.11,160.05,4.85914108]
[1729383772213,0.1,160.11,160.03,7.76175368]
[1729383772417,0.1,160.11,160.02,12.73139101]
[1729383772617,0.1,160.11,160.04,0.36]
[1729383772819,0.1,160.09,160.04,0.36]
[1729383773311,0.1,160.08,160.04,0.36]
[1729383774690,0.1,160.06,160.04,0.36]
[1729383774895,0.1,160.05,160.04,0.36]
[1729383775412,3.91701932,160.11,160.04,0.36]
[1729383775719,23.776884,160.1,159.99,0.1]
[1729383775890,23.776884,160.1,159.98,0.1]
[1729383776312,23.776884,160.1,159.97,0.1]
[1729383776518,20.0,160.09,159.97,0.1]
[1729383777510,6.2468,160.08,159.97,0.1]
[1729383777719,23.776884,160.07,159.96,0.1]
[1729383778217,23.776884,160.08,159.96,0.1]
[1729383778513,23.776884,160.04,159.96,0.1]
[1729383779915,23.776884,160.04,159.95,0.1]
[1729383780113,23.776884,159.99,159.91,0.1]
[1729383781414,30.027484,159.99,159.88,0.7201545]
[1729383781796,11.30790332,159.99,159.88,0.7201545]
[1729383781998,6.2506,159.99,159.88,0.7201545]
[1729383782319,20.0,159.99,159.92,6.253]
[1729383782612,17.42629693,160.03,159.92,6.253]
[1729383782816,20.0,160.02,159.92,6.253]
[1729383783510,6.2506,159.99,159.92,6.253]
[1729383784214,23.776884,159.98,159.92,6.253]
[1729383784698,17.42629693,160.03,159.92,0.1]
[1729383785018,9.86761932,160.03,159.93,0.1]
[1729383785218,16.29261932,160.03,159.93,0.1]
[1729383785516,16.29261932,160.03,159.98,6.2507]
[1729383785699,22.54151932,160.03,159.97,6.2509]
[1729383785905,16.29261932,160.03,159.94,0.1]
[1729383786696,16.29261932,160.03,159.98,6.2507]
[1729383787412,23.776884,160.02,159.98,6.2507]
[1729383788418,40.06950332,160.03,159.98,6.2507]
[1729383788609,21.34992264,160.03,159.98,6.2507]
[1729383792222,21.34992264,160.03,159.94,0.1]
[1729383792537,21.34992264,160.03,159.99,6.2503]
[1729383793524,21.34992264,160.03,159.93,0.1]
[1729383793711,21.34992264,160.03,159.98,6.2507]
[1729383793916,18.4728,160.06,160.03,6.2488]
[1729383794540,18.4728,160.06,159.94,0.1]
[1729383794725,11.2145785,160.06,159.94,0.1]
[1729383794910,9.05380622,160.11,159.93,0.1]
[1729383795235,23.776884,160.09,159.98,6.2506]
[1729383795428,23.776884,160.05,159.96,6.2514]
[1729383796029,23.776884,160.02,159.97,6.2508]
[1729383797842,23.776884,160.02,159.93,0.1]
[1729383798150,23.776884,160.02,159.97,6.2508]
[1729383798445,23.776884,160.0,159.96,6.2515]
[1729383798915,23.776884,160.0,159.95,6.2515]
[1729383799334,23.776884,159.98,159.94,6.2522]
[1729383800118,23.776884,159.98,159.89,6.2513]
[1729383800723,23.776884,159.98,159.92,6.2529]
[1729383800925,23.776884,159.96,159.92,6.2529]
[1729383801113,30.028584,159.96,159.91,15.6337]
[1729383801321,11.30900332,159.96,159.91,21.8871]
[1729383801613,6.2525,159.94,159.88,6.8747545]
[1729383802032,2.5121,159.97,159.88,0.6201545]
[1729383802442,6.2542,159.9,159.88,0.6201545]
[1729383803545,23.776884,159.89,159.88,0.6201545]
[1729383803839,43.776884,159.92,159.88,0.6201545]
[1729383806040,23.776884,159.94,159.88,0.6201545]
[1729383806231,8.7633,159.97,159.91,6.2531]
[1729383806735,6.2516,159.96,159.9,6.2538]
[1729383807240,6.2519,159.95,159.9,6.2538]
[1729383807958,23.776884,159.96,159.9,6.2538]
[1729383809372,23.776884,159.96,159.91,6.2531]
[1729383809549,23.776884,159.94,159.9,21.8881]
[1729383810029,23.776884,159.94,159.9,15.6344]
[1729383811333,11.78910216,159.99,159.91,6.2534]
[1729383811334,23.776884,159.96,159.91,6.2534]
[1729383812046,6.2514,159.97,159.92,6.2531]
[1729383812251,6.2514,159.97,159.91,6.2535]
[1729383812544,6.2515,159.96,159.91,6.2535]
[1729383813246,23.776884,159.95,159.9,15.6344]
[1729383813855,23.776884,159.95,159.88,6.8747545]
[1729383814434,23.776884,159.95,159.9,6.2537]
[1729383814666,23.776884,159.95,159.88,0.6201545]
[1729383814835,30.028884,159.95,159.9,15.6342]
[1729383815036,11.30930332,159.95,159.9,15.6342]
[1729383815236,6.252,159.95,159.9,15.6342]
[1729383817252,6.2523,159.94,159.9,15.6342]
[1729383819547,6.2518,159.96,159.9,21.8877]
[1729383819739,23.776884,159.97,159.9,15.6342]
[1729383819942,20.0,159.96,159.9,15.6342]
[1729383820258,6.2522,159.95,159.9,15.6342]
[1729383820451,6.2514,159.97,159.91,6.2531]
[1729383820660,20.0,159.96,159.91,6.2531]
[1729383820871,7.33688202,160.01,159.96,6.2514]
[1729383821168,10.69731793,160.02,159.92,0.1]
[1729383821347,10.69731793,160.02,159.99,6.25]
[1729383821547,18.73,160.09,159.97,6.2507]
[1729383821548,20.84835294,160.09,159.97,6.2507]
[1729383821882,6.2493,160.02,159.97,15.627]
[1729383822049,6.2484,160.05,159.98,6.2505]
[1729383822372,6.2484,160.04,159.98,6.2505]
[1729383825177,6.48413689,160.08,159.93,22.57]
[1729383825467,6.2472,160.07,160.01,6.2493]
[1729383825670,6.2472,160.07,160.02,6.2491]
[1729383825876,15.6141,160.12,159.96,0.1]
[1729383826062,6.2464,160.1,160.04,6.2483]
[1729383826972,6.2472,160.08,160.03,15.6219]
[1729383827971,23.776884,160.11,160.03,15.6219]
[1729383828164,23.776884,160.11,160.03,21.8707]
[1729383828366,23.776884,160.12,160.03,21.8707]
[1729383829376,6.2469,160.08,160.03,21.8707]
[1729383829586,6.2469,160.08,160.03,15.6219]
[1729383830460,23.776884,160.11,160.03,21.8703]
[1729383830761,23.776884,160.12,160.03,15.6219]
[1729383830962,23.776884,160.1,160.0,15.6249]
[1729383831165,23.776884,160.08,160.0,15.6249]
[1729383831375,6.2482,160.05,160.0,15.6249]
[1729383834462,20.0,160.07,160.0,15.6249]
[1729383835272,20.0,160.08,160.0,15.6249]
[1729383835873,6.248,160.06,160.0,15.6249]
[1729383836075,24.978,160.06,160.0,15.6249]
[1729383836377,6.248,160.06,160.0,15.6249]
[1729383836880,6.248,160.06,160.0,21.8748]
[1729383839479,6.2496,160.01,159.93,22.3483]
[1729383839689,62.506884,160.05,159.93,22.3483]
[1729383839988,6.2506,159.99,159.94,6.2521]
[1729383840891,43.776884,160.02,159.94,6.2521]
[1729383841968,20.0,160.02,159.97,6.2511]
[1729383842179,9.05380622,160.07,159.94,23.776884]
[1729383842488,6.2473,160.07,160.01,6.2492]
[1729383842791,6.248,160.05,160.0,21.8747]
[1729383843472,6.2484,160.04,160.0,15.6248]
[1729383844191,20.0,160.08,160.0,21.8744]
[1729383844376,6.248,160.05,160.0,21.8744]
[1729383844890,18.73,160.09,159.96,31.2578]
[1729383845087,6.49641753,160.1,159.98,6.2505]
[1729383845088,6.2485,160.04,159.98,6.2505]
[1729383845279,6.2501,160.0,159.94,6.2519]
[1729383845591,6.2512,159.97,159.93,22.3483]
[1729383846091,6.2512,159.97,159.91,6.2534]
[1729383847289,20.0,160.01,159.91,6.2534]
[1729383847472,20.0,159.99,159.89,37.9832]
[1729383847678,20.0,159.99,159.9,6.2538]
[1729383847873,23.776884,159.98,159.89,37.9832]
[1729383848081,20.0,159.97,159.89,22.3483]
[1729383848399,6.2523,159.95,159.89,28.6025]
[1729383849494,20.0,159.99,159.93,6.2523]
[1729383850388,6.2503,160.0,159.89,22.3483]
[1729383850389,20.0,160.0,159.92,15.6328]
[1729383850589,20.0,159.97,159.89,22.3483]
[1729383851170,20.0,159.98,159.91,6.2534]
[1729383851499,20.0,159.97,159.93,6.2524]
[1729383851791,20.0,159.99,159.94,6.2519]
[1729383851987,20.0,159.99,159.93,21.8837]
[1729383851988,26.2505,159.99,159.93,21.8837]
[1729383852169,20.0,159.99,159.93,21.8837]
[1729383852371,6.2508,159.98,159.93,21.8837]
[1729383853093,6.2508,159.98,159.93,15.6311]
[1729383853688,23.776884,160.0,159.93,15.6311]
[1729383855485,6.2511,159.98,159.93,21.8837]
[1729383855874,6.2519,159.95,159.89,21.8896]
[1729383856087,18.73,159.98,159.89,15.6354]
[1729383856288,6.2524,159.94,159.89,15.6354]
[1729383856679,6.2524,159.94,159.89,21.8895]
[1729383857678,43.776884,159.99,159.92,6.2528]
[1729383858600,6.2515,159.97,159.92,6.2528]
[1729383859099,6.2516,159.96,159.91,15.6329]
[1729383859301,6.2516,159.96,159.91,21.8863]
[1729383860206,31.30890332,159.99,159.91,21.8863]
[1729383860381,20.0,160.0,159.91,21.8863]
[1729383861403,6.2516,159.96,159.91,21.8863]
[1729383862404,18.73,159.99,159.91,15.6329]
[1729383862705,6.252,159.95,159.91,15.6329]
[1729383866705,6.252,159.95,159.92,18.75937968]
[1729383869292,26.50371373,160.0,159.92,25.01217968]
[1729383869498,6.2508,159.98,159.93,6.2525]
[1729383869895,6.2512,159.97,159.92,62.15277968]
[1729383872699,20.0,160.0,159.92,55.89967968]
[1729383873009,12.39782122,160.03,159.92,40.26707968]
[1729383873185,6.2498,160.01,159.95,21.8811]
[1729383873608,6.2498,160.01,159.96,6.2515]
[1729383874399,12.39782122,160.03,159.94,23.776884]
[1729383874617,12.39782122,160.03,159.98,6.2503]
[1729383874909,12.39782122,160.03,160.0,6.2498]
[1729383875106,6.2493,160.02,159.99,21.5077]
[1729383875287,6.2493,160.02,159.95,21.5077]
[1729383875490,6.2496,160.01,159.96,6.2515]
[1729383876822,6.50389217,160.05,160.0,6.359]
[1729383876990,258.6,160.13,160.07,6.2471]
[1729383877309,15.39401153,160.2,160.08,6.2466]
[1729383877310,1.08627407,160.19,160.08,6.2466]
[1729383877620,1.08627407,160.19,160.02,15.1487]